[Event "27th 4NCL Congress Open 2022"]
[Site "Harrogate"]
[Date "2022.01.22"]
[Round "3.21"]
[White "Fathallah, Joe"]
[Black "Miller, George"]
[Result "1-0"]
[ECO "D32"]
[WhiteElo "1882"]
[BlackElo "1796"]
[Annotator "NA"]
[PlyCount "97"]
[EventDate "2022.01.21"]
[EventType "swiss"]
[EventCountry "ENG"]
[SourceTitle "playchess.com"]
[Source "ChessBase"]
[SourceQuality "1"]
[TimeControl "5400+30"]

1. d4 {[%emt 0:00:06]} d5 {[%emt 0:06:35]} 2. c4 {[%emt 0:00:12]} e6 {[%emt 0:00:05]} 3. Nc3 {[%emt 0:00:08]} c5 {[%emt 0:00:05]} 4. dxc5 {[%emt 0:00:30]} d4 {[%emt 0:01:25]} 5. Ne4 {[%emt 0:00:20]} Bxc5 {[%emt 0:02:27]} 6. Nxc5 {[%emt 0:00:09]} Qa5+ {[%emt 0:00:08]} 7. Bd2 {[%emt 0:00:16]} Qxc5 {[%emt 0:00:08]} 8. e3 {[%emt 0:00:34]} dxe3 {[%emt 0:04:03]} 9. Bxe3 {[%emt 0:00:14]} Qb4+ {[%emt 0:00:41]} 10. Qd2 {[%emt 0:00:16]} Nc6 {[%emt 0:00:50]} 11. Nf3 {[%emt 0:03:53]} e5 {[%emt 0:01:33]} 12. Be2 {[%emt 0:02:36]} Bf5 {[%emt 0:02:12]} 13. O-O {[%emt 0:02:51]} f6 {[%emt 0:05:11]} 14. Rfd1 {[%emt 0:05:11]} Nge7 {[%emt 0:01:05]} 15. Rac1 {[%emt 0:18:03]} Kf7 {[%emt 0:00:50]} 16. a3 {[%emt 0:03:25]} Qxd2 {[%emt 0:00:13]} 17. Nxd2 {[%emt 0:03:24]} Rhd8 {[%emt 0:05:25]} 18. Nf3 {[%emt 0:01:43]} Be4 {[%emt 0:06:27]} 19. b4 {[%emt 0:01:37]} Nf5 {[%emt 0:00:25]} 20. Kf1 {[%emt 0:03:09]} Nxe3+ {[%emt 0:02:13]} 21. fxe3 {[%emt 0:00:07]} Rxd1+ {[%emt 0:00:49]} 22. Rxd1 {[%emt 0:00:17]} Rd8 {[%emt 0:00:13]} 23. Rxd8 {[%emt 0:01:00]} Nxd8 {[%emt 0:00:10]} 24. Ke1 {[%emt 0:01:22]} Nc6 {[%emt 0:05:38]} 25. Kd2 {[%emt 0:00:50]} Ne7 {[%emt 0:00:43]} 26. Bd3 {[%emt 0:10:30]} Bc6 {[%emt 0:05:33]} 27. Bc2 {[%emt 0:01:12]} g6 {[%emt 0:04:39]} 28. Kc3 {[%emt 0:06:17]} Ke6 {[%emt 0:00:52]} 29. Bb3 {[%emt 0:11:26]} Be4 {[%emt 0:09:58]} 30. a4 {[%emt 0:03:49]} Kd6 {[%emt 0:03:45]} 31. Bc2 {[%emt 0:04:47]} Bc6 {[%emt 0:08:01]} 32. c5+ {[%emt 0:02:34]} Ke6 {[%emt 0:02:52]} 33. e4 {[%emt 0:00:26]} h6 {[%emt 0:02:15]} 34. Bb3+ {[%emt 0:00:51]} Kd7 {[%emt 0:00:12]} 35. Nd2 {[%emt 0:01:36]} Kc7 {[%emt 0:00:16]} 36. b5 {[%emt 0:00:51]} Bd7 {[%emt 0:01:44]} 37. Kb4 {[%emt 0:01:20]} Bg4 {[%emt 0:04:00]} 38. Nc4 {[%emt 0:01:46]} Nc8 {[%emt 0:00:26]} 39. Ne3 {[%emt 0:00:41]} f5 {[%emt 0:02:24]} 40. h3 {[%emt 0:01:39]} Be2 {[%emt 0:03:27]} 41. exf5 {[%emt 0:00:20]} gxf5 {[%emt 0:01:11]} 42. Nxf5 {[%emt 0:00:13]} h5 {[%emt 0:01:18]} 43. Ng3 {[%emt 0:00:18]} Bd3 {[%emt 0:00:43]} 44. Nxh5 {[%emt 0:00:32]} Ne7 {[%emt 0:00:35]} 45. Nf6 {[%emt 0:00:47]} Ng6 {[%emt 0:02:33]} 46. Kc3 {[%emt 0:01:17]} Bf1 {[%emt 0:00:31]} 47. Nd5+ {[%emt 0:00:42]} Kd7 {[%emt 0:01:11]} 48. Ne3 {[%emt 0:00:16]} Be2 {[%emt 0:01:37]} 49. Kd2 {[%emt 0:00:13]} 1-0

[Event "27th 4NCL Congress Open 2022"]
[Site "Harrogate"]
[Date "2022.01.22"]
[Round "3.22"]
[White "De Sousa Muachikape, Jael"]
[Black "Stokes, Michael"]
[Result "0-1"]
[ECO "C50"]
[WhiteElo "1841"]
[BlackElo "2071"]
[Annotator "NA"]
[PlyCount "40"]
[EventDate "2022.01.21"]
[EventType "swiss"]
[EventCountry "ENG"]
[SourceTitle "playchess.com"]
[Source "ChessBase"]
[SourceQuality "1"]
[TimeControl "5400+30"]

{[%evp 8,38,16,14,16,8,17,16,32767,32767,32767,32767,32767,32767,32767,32767,32767,32767,32767,32767,32767,21,32767,32767,11,-63,32767,32767,32767,-1783,-429,-1816,-1909]} 1. e4 {[%emt 0:00:06]} e5 {[%emt 0:00:04]} 2. Nf3 {[%emt 0:00:04]} Nc6 {[%emt 0:00:05]} 3. Bc4 {[%emt 0:00:10]} Bc5 {[%emt 0:00:05]} 4. d3 {[%emt 0:00:12]} Nf6 {[%emt 0:00:06]} 5. a4 {[%emt 0:00:21]} d6 {[%emt 0:00:17]} 6. h3 {[%emt 0:00:11]} O-O {[%emt 0:00:07]} 7. O-O {[%emt 0:00:11]} Be6 {[%emt 0:00:21]} 8. Nbd2 {[%emt 0:01:42]} Qd7 {[%emt 0:00:57]} 9. c3 {[%emt 0:00:20]} a6 {[%emt 0:01:28]} 10. b4 {[%emt 0:01:46]} Bxc4 {[%emt 0:01:13]} 11. Nxc4 {[%emt 0:02:54]} Ba7 {[%emt 0:00:24]} 12. Bg5 {[%emt 0:04:58]} Qe6 {[%emt 0:00:59]} 13. b5 {[%emt 0:02:22]} Ne7 {[%emt 0:02:39]} 14. Bxf6 {[%emt 0:01:12]} Qxf6 {[%emt 0:00:16]} 15. d4 {[%emt 0:00:24]} Ng6 {[%emt 0:01:36]} (15... Qe6 $142 16. Ncd2 axb5) 16. g3 {[%emt 0:00:45]} ({White should play} 16. bxa6 $11 bxa6 17. Ne3) 16... Qe6 {[%emt 0:02:15]} 17. Qd3 {[%emt 0:00:34]} Qxh3 {[%emt 0:01:26]} 18. dxe5 $2 {[%emt 0:00:15]} (18. Rab1 $15) 18... Qxg3+ {[%emt 0:00:31]} 19. Kh1 {[%emt 0:00:40]} Qh3+ $19 {[%emt 0:00:17]} 20. Kg1 {[%emt 0:01:28]} Nf4 {[%emt 0:00:17]} 0-1

[Event "27th 4NCL Congress Open 2022"]
[Site "Harrogate"]
[Date "2022.01.23"]
[Round "4.8"]
[White "Ther, Mate"]
[Black "Onslow, Alfie"]
[Result "0-1"]
[ECO "B12"]
[WhiteElo "2031"]
[BlackElo "2038"]
[Annotator "RC"]
[PlyCount "72"]
[EventDate "2022.01.21"]
[EventType "swiss"]
[EventCountry "ENG"]
[SourceTitle "playchess.com"]
[Source "ChessBase"]
[SourceQuality "1"]
[TimeControl "5400+30"]

1. e4 {[%emt 0:00:01]} c6 {[%emt 0:03:17]} 2. d4 {[%emt 0:00:35]} d5 {[%emt 0:00:13]} 3. e5 {[%emt 0:00:55]} Bf5 {[%emt 0:00:13]} 4. Nc3 {[%emt 0:00:09]} e6 {[%emt 0:00:46]} 5. g4 {[%emt 0:00:10]} Bg6 {[%emt 0:00:18]} 6. Nge2 {[%emt 0:01:46]} c5 {[%emt 0:01:48]} 7. h4 {[%emt 0:00:57]} h5 {[%emt 0:00:57]} 8. Nf4 {[%emt 0:00:26]} Bh7 {[%emt 0:01:16]} 9. Nxh5 {[%emt 0:02:01]} cxd4 {[%emt 0:00:24]} 10. Nb5 {[%emt 0:09:10]} Nc6 {[%emt 0:04:41]} 11. Nxd4 {[%emt 0:11:01]} Nge7 {[%emt 0:07:25]} 12. Bb5 {[%emt 0:05:13]} Qc7 {[%emt 0:01:04]} 13. Bxc6+ {[%emt 0:02:57]} Nxc6 {[%emt 0:00:45]} 14. Nxc6 {[%emt 0:02:17]} Qxc6 {[%emt 0:00:56]} 15. Bg5 {[%emt 0:14:32]} Bxc2 {[%emt 0:22:54]} 16. Qd2 {[%emt 0:00:37]} Qc4 {[%emt 0:00:42]} 17. Rh3 {[%emt 0:14:15]} Bb4 {[%emt 0:01:17]} 18. Rc3 {[%emt 0:00:56]} Qe4+ {[%emt 0:00:39]} 19. Kf1 {[%emt 0:00:49]} Bxc3 {[%emt 0:00:40]} 20. Qxc3 {[%emt 0:00:16]} Bd3+ {[%emt 0:00:55]} 21. Kg1 {[%emt 0:00:35]} O-O {[%emt 0:11:10]} 22. Nf4 {[%emt 0:03:56]} Ba6 {[%emt 0:02:15]} 23. Re1 {[%emt 0:00:00]} Rac8 {[%emt 0:00:41]} 24. Qd2 {[%emt 0:00:52]} Rc2 {[%emt 0:02:10]} 25. Qd1 {[%emt 0:03:01]} Qc4 {[%emt 0:00:51]} 26. Qf3 {[%emt 0:00:38]} Rc1 {[%emt 0:01:23]} 27. Rxc1 {[%emt 0:00:12]} Qxc1+ {[%emt 0:00:04]} 28. Kh2 {[%emt 0:00:07]} Qe1 {[%emt 0:00:18]} 29. Nh5 {[%emt 0:05:01]} Qxe5+ {[%emt 0:02:45]} 30. Bf4 {[%emt 0:00:05]} Qe4 {[%emt 0:00:25]} 31. Qg3 {[%emt 0:00:16]} Rc8 {[%emt 0:02:00]} 32. Bh6 {[%emt 0:00:31]} Be2 {[%emt 0:09:35]} 33. Bxg7 {[%emt 0:00:54]} Qf3 {[%emt 0:01:03]} 34. Qg1 {[%emt 0:00:12]} Rc1 {[%emt 0:01:24]} 35. Qg2 {[%emt 0:02:07]} Qxg2+ {[%emt 0:00:35]} 36. Kxg2 {[%emt 0:00:05]} f5 {[%emt 0:00:54]} 0-1

[Event "27th 4NCL Congress Open 2022"]
[Site "Harrogate"]
[Date "2022.01.23"]
[Round "4.18"]
[White "Coates, Sam"]
[Black "May, Paul"]
[Result "0-1"]
[ECO "A21"]
[WhiteElo "1689"]
[BlackElo "1735"]
[Annotator "NA RC"]
[PlyCount "58"]
[EventDate "2022.01.21"]
[EventType "swiss"]
[EventCountry "ENG"]
[SourceTitle "playchess.com"]
[Source "ChessBase"]
[SourceQuality "1"]
[TimeControl "5400+30"]

1. c4 {[%emt 0:00:26]} g6 {[%emt 0:00:06]} 2. Nc3 {[%emt 0:00:16]} Bg7 {[%emt 0:00:10]} 3. g3 {[%emt 0:00:37]} e5 {[%emt 0:00:32]} 4. Bg2 {[%emt 0:00:28]} f5 {[%emt 0:00:19]} 5. e4 {[%emt 0:01:37]} Nh6 {[%emt 0:07:25]} 6. d3 {[%emt 0:03:47]} O-O {[%emt 0:03:28]} 7. Nge2 {[%emt 0:06:38]} Nc6 {[%emt 0:05:26]} 8. h3 {[%emt 0:07:29]} d6 {[%emt 0:00:49]} 9. O-O {[%emt 0:07:29]} f4 {[%emt 0:15:06]} 10. gxf4 {[%emt 0:12:57]} exf4 {[%emt 0:01:56]} 11. Bxf4 {[%emt 0:01:03]} g5 {[%emt 0:15:37]} 12. Bg3 {[%emt 0:02:49]} g4 {[%emt 0:07:19]} 13. Nf4 {[%emt 0:07:17]} Nd4 {[%emt 0:08:35]} 14. hxg4 {[%emt 0:03:54]} Nxg4 {[%emt 0:03:17]} 15. Nce2 {[%emt 0:06:41]} Qg5 {[%emt 0:03:47]} 16. Nh3 {[%emt 0:02:18]} Qh6 {[%emt 0:07:42]} 17. Nxd4 {[%emt 0:05:29]} Bxd4 {[%emt 0:00:08]} 18. Qe2 {[%emt 0:00:13]} Ne5 {[%emt 0:01:45]} 19. Bxe5 {[%emt 0:14:54]} dxe5 {[%emt 0:00:27]} 20. Kh2 {[%emt 0:00:11]} Rf4 {[%emt 0:04:49]} 21. Qd2 {[%emt 0:01:13]} Qh5 {[%emt 0:00:44]} 22. Qd1 {[%emt 0:01:03]} Bg4 {[%emt 0:02:18]} 23. f3 {[%emt 0:00:21]} Bd7 {[%emt 0:03:12]} 24. Qe1 {[%emt 0:01:22]} Kh8 {[%emt 0:00:20]} 25. Rh1 {[%emt 0:01:34]} Rg8 {[%emt 0:00:42]} 26. Qf1 {[%emt 0:00:33]} Bxh3 {[%emt 0:01:04]} 27. Bxh3 {[%emt 0:00:33]} Rxf3 {[%emt 0:00:27]} 28. Rc1 {[%emt 0:02:38]} Rxf1 {[%emt 0:00:49]} 29. Rcxf1 {[%emt 0:00:03]} Qe2+ {[%emt 0:00:18]} 0-1

[Event "27th 4NCL Congress Open 2022"]
[Site "Harrogate"]
[Date "2022.01.23"]
[Round "4.20"]
[White "Wynarczyk, Raymond"]
[Black "Fathallah, Joe"]
[Result "0-1"]
[ECO "C14"]
[WhiteElo "1752"]
[BlackElo "1882"]
[Annotator "NA RC"]
[PlyCount "104"]
[EventDate "2022.01.21"]
[EventType "swiss"]
[EventCountry "ENG"]
[SourceTitle "playchess.com"]
[Source "ChessBase"]
[SourceQuality "1"]
[TimeControl "5400+30"]

1. e4 {[%emt 0:00:04]} e6 {[%emt 0:00:11]} 2. d4 {[%emt 0:00:12]} d5 {[%emt 0:00:04]} 3. Nc3 {[%emt 0:00:09]} Nf6 {[%emt 0:00:09]} 4. Bg5 {[%emt 0:00:10]} Be7 {[%emt 0:00:07]} 5. e5 {[%emt 0:00:07]} Nfd7 {[%emt 0:00:06]} 6. h4 {[%emt 0:00:09]} a6 {[%emt 0:00:17]} 7. Qg4 {[%emt 0:03:31]} Bxg5 {[%emt 0:00:13]} 8. hxg5 {[%emt 0:01:17]} c5 $1 {[%emt 0:00:12]} 9. g6 {[%emt 0:00:41]} ({White should try} 9. dxc5 $14 Nxe5 10. Qg3) 9... f5 {[%emt 0:00:21]} 10. exf6 {[%emt 0:07:17]} Nxf6 {[%emt 0:00:48]} 11. Qf4 {[%emt 0:07:35]} h6 {[%emt 0:10:52]} (11... cxd4 $1 $15 12. Qxd4 (12. Rxh7 Rf8 $11) 12... Nc6) 12. dxc5 {[%emt 0:03:08]} Nc6 {[%emt 0:02:35]} 13. Nf3 {[%emt 0:04:06]} Qe7 {[%emt 0:07:17]} 14. Qd6 {[%emt 0:03:11]} (14. O-O-O $14) 14... Qxd6 $1 {[%emt 0:01:54]} 15. cxd6 {[%emt 0:00:16]} e5 {[%emt 0:01:53] [#]} ({Black should try} 15... Kd7 $11) 16. Ng5 $1 {[%emt 0:03:07]} Bf5 {[%emt 0:06:39]} 17. O-O-O {[%emt 0:00:16]} d4 {[%emt 0:14:08]} 18. Na4 {[%emt 0:03:30]} b5 {[%emt 0:04:15]} (18... Rf8 $11 19. Nb6 Rb8) 19. Nc5 {[%emt 0:01:23]} Rg8 {[%emt 0:10:45]} 20. Nge6 {[%emt 0:03:58]} Bxe6 {[%emt 0:00:36]} 21. Nxe6 {[%emt 0:00:19]} Kd7 {[%emt 0:01:01]} 22. Nc5+ $1 {[%emt 0:03:22]} Kxd6 {[%emt 0:00:25]} 23. Nb3 {[%emt 0:03:40]} Rac8 {[%emt 0:09:19]} 24. Kb1 $15 {[%emt 0:01:47]} (24. f4 $1 $11) 24... Rgd8 {[%emt 0:04:30]} 25. f4 {[%emt 0:02:40]} exf4 {[%emt 0:03:33]} 26. Nxd4 {[%emt 0:02:39]} Nxd4 {[%emt 0:00:18]} 27. Rxd4+ {[%emt 0:00:09]} Ke5 {[%emt 0:00:18]} 28. Rxd8 {[%emt 0:01:56]} Rxd8 {[%emt 0:00:46]} 29. Bd3 {[%emt 0:02:03]} Kd4 {[%emt 0:08:10]} 30. Bxb5 {[%emt 0:01:15]} Ke3 {[%emt 0:03:35]} 31. Bxa6 {[%emt 0:02:52]} Kf2 {[%emt 0:00:21]} 32. Bb7 {[%emt 0:01:00]} Nd5 {[%emt 0:02:48]} 33. c4 {[%emt 0:03:16]} Ne3 {[%emt 0:01:36]} 34. c5 {[%emt 0:01:57]} Rd7 {[%emt 0:02:12]} 35. Be4 {[%emt 0:07:51]} Nxg2 {[%emt 0:01:05]} 36. Rh2 {[%emt 0:01:33]} f3 {[%emt 0:00:02]} 37. c6 {[%emt 0:01:14]} Re7 {[%emt 0:00:49]} 38. Bd5 {[%emt 0:01:17]} Kg1 {[%emt 0:01:17]} 39. Bxf3 {[%emt 0:03:25]} Kxh2 {[%emt 0:00:13]} 40. b4 {[%emt 0:00:05]} Ne3 {[%emt 0:00:43]} 41. a4 {[%emt 0:04:01]} Nc4 {[%emt 0:00:30]} 42. Kc2 {[%emt 0:00:52]} Kg3 {[%emt 0:00:40]} 43. Bh5 {[%emt 0:01:57]} Kh4 {[%emt 0:00:42]} 44. Kc3 {[%emt 0:01:59]} Nb6 {[%emt 0:00:37]} 45. Bd1 {[%emt 0:00:42]} Kg5 {[%emt 0:00:30]} 46. a5 {[%emt 0:00:09]} Nd5+ {[%emt 0:00:47]} 47. Kb3 {[%emt 0:00:58]} h5 {[%emt 0:00:30]} 48. b5 {[%emt 0:00:26]} h4 {[%emt 0:01:28]} 49. b6 {[%emt 0:01:06]} h3 {[%emt 0:01:03]} 50. b7 {[%emt 0:00:51]} h2 {[%emt 0:00:33]} 51. b8=Q {[%emt 0:02:36]} h1=Q {[%emt 0:00:13]} 52. Qg3+ {[%emt 0:00:42]} Kh6 {[%emt 0:00:15]} 0-1

[Event "27th 4NCL Congress Open 2022"]
[Site "Harrogate"]
[Date "2022.01.23"]
[Round "4.21"]
[White "Sheppard, Derek Alan"]
[Black "Brencher, Paul"]
[Result "0-1"]
[ECO "A41"]
[WhiteElo "1692"]
[BlackElo "1875"]
[Annotator "NA RC"]
[PlyCount "48"]
[EventDate "2022.01.21"]
[EventType "swiss"]
[EventCountry "ENG"]
[SourceTitle "playchess.com"]
[Source "ChessBase"]
[SourceQuality "1"]
[TimeControl "5400+30"]

{[%evp 8,33,11,9,20,0,0,0,21,8,22,0,0,4,13,8,0,16,53,-20,-2,-45,-4,-15,32767,32767,-50,-178]} 1. d4 {[%emt 0:00:04]} d6 {[%emt 0:01:15]} 2. Bf4 {[%emt 0:00:18]} g6 {[%emt 0:00:23]} 3. Nf3 {[%emt 0:00:26]} Bg7 {[%emt 0:00:39]} 4. e3 {[%emt 0:00:23]} Nd7 {[%emt 0:01:36]} 5. h3 {[%emt 0:02:27]} e5 {[%emt 0:06:10]} 6. Bh2 {[%emt 0:00:16]} Qe7 {[%emt 0:03:38]} 7. Be2 {[%emt 0:00:20]} Nh6 {[%emt 0:04:36]} 8. O-O {[%emt 0:02:36]} O-O {[%emt 0:01:37]} 9. c3 {[%emt 0:02:04]} e4 {[%emt 0:09:51]} 10. Ne1 {[%emt 0:01:15]} b6 {[%emt 0:06:01]} 11. Nc2 {[%emt 0:00:37]} Nf5 {[%emt 0:02:42]} 12. a4 {[%emt 0:02:27]} Bb7 {[%emt 0:02:06]} (12... a5 $11) 13. Nba3 {[%emt 0:03:43]} (13. a5 $1 $14) 13... a6 {[%emt 0:01:52]} 14. Nc4 {[%emt 0:02:31]} (14. b4 $11 {deserves consideration.}) 14... Nh4 {[%emt 0:06:10]} 15. b4 $1 {[%emt 0:07:56]} g5 {[%emt 0:07:06]} 16. Kh1 {[%emt 0:25:51]} f5 {[%emt 0:01:57]} 17. Qd2 $19 {[%emt 0:00:33]} ({White should try} 17. Bg3 $15) 17... f4 {[%emt 0:10:52]} 18. g3 {[%emt 0:18:34]} Ng6 {[%emt 0:01:11]} 19. Bh5 {[%emt 0:08:58]} Qe6 {[%emt 0:05:32]} 20. Bg4 {[%emt 0:04:25]} Qxc4 {[%emt 0:02:58]} 21. Bxd7 {[%emt 0:00:09]} h5 {[%emt 0:01:25]} 22. Na3 {[%emt 0:04:51]} Qf7 {[%emt 0:00:31]} 23. Qa2 {[%emt 0:01:15]} d5 {[%emt 0:01:19]} 24. Qe2 {[%emt 0:02:15]} f3 {[%emt 0:00:28]} 0-1

[Event "27th 4NCL Congress Open 2022"]
[Site "Harrogate"]
[Date "2022.01.23"]
[Round "4.23"]
[White "Varley, Joe"]
[Black "Miller, George"]
[Result "1-0"]
[ECO "C10"]
[WhiteElo "1832"]
[BlackElo "1796"]
[Annotator "NA RC"]
[PlyCount "75"]
[EventDate "2022.01.21"]
[EventType "swiss"]
[EventCountry "ENG"]
[SourceTitle "playchess.com"]
[Source "ChessBase"]
[SourceQuality "1"]
[TimeControl "5400+30"]

{[%evp 8,53,58,35,59,58,32767,55,32767,32767,64,52,71,52,56,44,41,32767,49,37,69,55,143,135,478,121,233,214,253,202,240,239,32767,237,243,241,237,207,207,181,198,197,198,188,191,192,216,109]} 1. e4 {[%emt 0:00:04]} e6 {[%emt 0:07:29]} 2. d4 {[%emt 0:00:07]} d5 {[%emt 0:00:04]} 3. Nd2 {[%emt 0:00:06]} dxe4 {[%emt 0:00:05]} 4. Nxe4 {[%emt 0:00:11]} Bd7 {[%emt 0:00:23]} 5. Bd3 {[%emt 0:00:40]} Bc6 {[%emt 0:00:09]} 6. Nf3 {[%emt 0:01:06]} Nd7 {[%emt 0:02:15]} 7. c3 {[%emt 0:01:04]} Ngf6 {[%emt 0:00:14]} 8. Nxf6+ {[%emt 0:00:22]} Nxf6 {[%emt 0:00:15]} 9. O-O {[%emt 0:00:10]} Bxf3 {[%emt 0:02:27]} 10. Qxf3 {[%emt 0:00:14]} ({Much worse is} 10. gxf3 Qd5 $11) 10... c6 {[%emt 0:00:04]} 11. Re1 {[%emt 0:01:01]} Bd6 {[%emt 0:03:23]} 12. Bg5 {[%emt 0:02:04]} h6 {[%emt 0:01:04]} 13. Bd2 {[%emt 0:03:56]} Qc7 {[%emt 0:02:34]} 14. h3 {[%emt 0:01:22]} O-O {[%emt 0:01:11] [#]} (14... Qe7 $14) 15. Bxh6 $1 {[%emt 0:01:13]} Nd5 $2 {[%emt 0:01:35] [#]} (15... Qa5 $16 {is tougher.} 16. Bd2 Qd5 17. Qxd5 Nxd5) 16. Bd2 $2 {[%emt 0:02:34]} ({And not} 16. Qg4 f5 17. Qh5 (17. Qg6 $2 Rf6 $19) 17... gxh6 18. Qg6+ Kh8 19. Qxh6+ Qh7 20. Rxe6 Bc7 $11) (16. Bxg7 $1 $18 {[%mdl 512] and the rest is easy.} Rfe8 17. Be5 Bxe5 18. Rxe5) 16... Nf4 {[%emt 0:00:14]} (16... Bf4 $16 {was necessary.}) 17. Bc2 {[%emt 0:02:17]} g6 {[%emt 0:00:37]} 18. Re4 {[%emt 0:01:52]} Nh5 {[%emt 0:01:06]} 19. Bh6 {[%emt 0:01:36]} Qe7 {[%emt 0:01:44]} 20. Bxf8 {[%emt 0:00:39]} Kxf8 {[%emt 0:00:13]} 21. Rae1 {[%emt 0:00:15]} Kg7 {[%emt 0:00:25]} 22. a3 {[%emt 0:03:50]} Rh8 {[%emt 0:00:10]} 23. c4 {[%emt 0:00:29]} Nf6 {[%emt 0:00:44]} 24. R4e2 {[%emt 0:00:50]} Bb8 {[%emt 0:00:11]} 25. Kf1 {[%emt 0:05:46]} Qd6 {[%emt 0:00:36]} 26. Rd2 {[%emt 0:01:09]} Rh4 {[%emt 0:03:06]} 27. Qg3 $16 {[%emt 0:06:22]} ({White should play} 27. g4 $18) 27... Rf4 {[%emt 0:00:25]} 28. Qd3 {[%emt 0:03:11]} Rf5 {[%emt 0:04:54]} 29. g3 {[%emt 0:03:26]} Nh5 {[%emt 0:02:32]} 30. Kg1 {[%emt 0:02:29]} Rg5 {[%emt 0:06:01]} 31. Re5 {[%emt 0:01:02]} f5 {[%emt 0:01:04]} 32. Qe3 {[%emt 0:03:27]} f4 {[%emt 0:01:18]} 33. Qe4 {[%emt 0:05:47]} Nxg3 {[%emt 0:02:35]} 34. fxg3 {[%emt 0:00:31]} Qe7 {[%emt 0:02:22]} 35. Rxe6 {[%emt 0:01:21]} Rxg3+ {[%emt 0:00:19]} 36. Rg2 {[%emt 0:00:06]} Rxg2+ {[%emt 0:00:07]} 37. Kxg2 {[%emt 0:00:05]} Qg5+ {[%emt 0:00:09]} 38. Kh1 {[%emt 0:00:08]} 1-0

[Event "27th 4NCL Congress Open 2022"]
[Site "Harrogate"]
[Date "2022.01.23"]
[Round "5.19"]
[White "De Sousa Muachikape, Jael"]
[Black "Coates, Sam"]
[Result "0-1"]
[ECO "D37"]
[WhiteElo "1841"]
[BlackElo "1689"]
[Annotator "NA RC"]
[PlyCount "108"]
[EventDate "2022.01.21"]
[EventType "swiss"]
[EventCountry "ENG"]
[SourceTitle "playchess.com"]
[Source "ChessBase"]
[SourceQuality "1"]
[TimeControl "5400+30"]

1. d4 {[%emt 0:00:02]} d5 {[%emt 0:01:12]} 2. c4 {[%emt 0:00:05]} e6 {[%emt 0:00:20]} 3. Nc3 {[%emt 0:00:12]} Nf6 {[%emt 0:00:26]} 4. Nf3 {[%emt 0:00:18]} Nbd7 {[%emt 0:00:43]} 5. Bf4 {[%emt 0:00:09]} dxc4 {[%emt 0:00:32]} 6. e3 {[%emt 0:00:42]} Nb6 {[%emt 0:00:13]} 7. Ne5 {[%emt 0:01:00]} Be7 {[%emt 0:04:15]} 8. Nxc4 {[%emt 0:00:39]} O-O {[%emt 0:02:17]} 9. Bd3 {[%emt 0:01:00]} Nxc4 {[%emt 0:03:12]} 10. Bxc4 {[%emt 0:00:19]} a6 {[%emt 0:02:36]} 11. a4 {[%emt 0:02:14]} c5 {[%emt 0:02:29]} 12. dxc5 {[%emt 0:00:16]} Bxc5 {[%emt 0:03:10]} 13. Qc2 {[%emt 0:08:28]} Qe7 {[%emt 0:01:46]} 14. h3 {[%emt 0:06:58]} h6 {[%emt 0:02:17]} 15. Be5 {[%emt 0:09:46]} Bd7 {[%emt 0:04:34]} 16. Ba2 {[%emt 0:00:20]} Bc6 {[%emt 0:03:27]} 17. O-O {[%emt 0:01:32]} Ba7 {[%emt 0:02:10]} 18. Bb1 {[%emt 0:01:23]} g6 {[%emt 0:00:35]} 19. Rd1 {[%emt 0:06:26]} Rfd8 {[%emt 0:00:59]} 20. Ba2 {[%emt 0:00:19] [#]} (20. Qb3 $11 {keeps the balance.}) 20... Rac8 {[%emt 0:02:56]} ({Better is} 20... Nh5 $1 $17 21. Ne4 Qh4) 21. Rxd8+ {[%emt 0:00:43]} Rxd8 {[%emt 0:00:27]} 22. Rd1 {[%emt 0:00:18]} Bb6 {[%emt 0:03:33]} 23. b4 {[%emt 0:04:01]} Nd7 {[%emt 0:16:50]} ({Better is} 23... Rxd1+ $11 24. Qxd1 Nd7) 24. Bd6 {[%emt 0:00:29]} (24. Bf4 $1 $14 {is superior.} Rc8 25. Qb2 (25. Bxh6 Kh7 $11)) 24... Qg5 {[%emt 0:00:21]} 25. e4 {[%emt 0:01:23]} Ne5 {[%emt 0:02:45]} 26. Qe2 {[%emt 0:09:48]} (26. Kh1 $15) 26... h5 {[%emt 0:13:18]} ({Black should play} 26... Qg3 $19 27. b5 Qxc3 28. Bxe5 Rxd1+ 29. Qxd1 Qxe5 30. bxc6 Qb2 31. cxb7 Bxf2+ 32. Kh1 Qxb7) 27. Bb3 {[%emt 0:11:53]} Kh7 {[%emt 0:00:54]} 28. b5 {[%emt 0:02:34]} axb5 {[%emt 0:01:12]} 29. axb5 {[%emt 0:00:07]} Be8 {[%emt 0:01:53]} 30. h4 {[%emt 0:05:34]} Qf6 {[%emt 0:01:56]} 31. Na4 {[%emt 0:00:10] [#]} Ba5 {[%emt 0:01:40]} ({Don't go for} 31... Bxb5 $2 32. Bxe5 Rxd1+ 33. Bxd1 $17) (31... Rxd6 $142 $1 {[%mdl 512]} 32. Rxd6 {[#]} Bxb5 $1) 32. Nc5 {[%emt 0:05:12] [#]} b6 $2 {[%emt 0:01:26]} ({Black should play} 32... Rxd6 $1 $19 {[%mdl 512]} 33. Rxd6 Bb4 34. Nxb7 Ng4) 33. Nb7 {[%emt 0:00:32]} Ra8 {[%emt 0:00:38]} 34. Rc1 {[%emt 0:01:16]} Ng4 {[%emt 0:03:08]} 35. Bg3 $1 {[%emt 0:00:59]} ({Don't play} 35. Nxa5 Rxa5 36. Bg3 Rxb5 $15) 35... Bc3 {[%emt 0:02:16]} 36. Nd6 {[%emt 0:04:27]} Be5 {[%emt 0:01:04]} 37. Nxe8 {[%emt 0:02:04]} Rxe8 {[%emt 0:00:13]} 38. Qf3 {[%emt 0:02:29]} (38. Bxe5 $142 Qxe5 39. g3) 38... Qe7 {[%emt 0:01:17]} ({Better is} 38... Bxg3 $19 39. Qxf6 Nxf6 40. fxg3 Nxe4) 39. Bxe5 $1 {[%emt 0:02:25]} Nxe5 {[%emt 0:00:02]} 40. Qc3 {[%emt 0:02:53]} Qf6 {[%emt 0:02:18]} 41. f4 {[%emt 0:02:09]} Qxf4 {[%emt 0:00:41]} 42. Rf1 {[%emt 0:00:15]} Qxe4 {[%emt 0:02:01]} 43. Re1 {[%emt 0:00:54]} Qd3 {[%emt 0:00:33]} 44. Qxe5 {[%emt 0:00:47]} Qxb3 {[%emt 0:00:15]} 45. Rf1 {[%emt 0:01:15]} Kg8 {[%emt 0:02:19]} 46. Rf3 {[%emt 0:00:57]} Qd1+ {[%emt 0:01:02]} 47. Kh2 {[%emt 0:00:09]} Rd8 {[%emt 0:01:02]} 48. Qf6 {[%emt 0:01:37]} Qd6+ {[%emt 0:01:11]} 49. Kh3 {[%emt 0:00:09]} Qd7 {[%emt 0:00:59]} 50. Rg3 {[%emt 0:01:15]} e5+ {[%emt 0:01:42]} 51. Kh2 {[%emt 0:00:03]} Qd6 {[%emt 0:00:37]} 52. Qg5 $2 {[%emt 0:00:14]} (52. Rf3 e4+ 53. Qxd6 Rxd6 54. Rf2) 52... Kh7 {[%emt 0:00:49]} (52... e4 $142 53. Qc1 Qe5) 53. Rf3 $19 {[%emt 0:02:19]} e4+ {[%emt 0:01:48]} 54. Rf4 {[%emt 0:00:07]} f5 {[%emt 0:00:35]} 0-1